[Event "Grand Prix Romania 1st Stage 2024"]
[Site "Bucuresti"]
[Date "2024.03.23"]
[Round "4.38"]
[White "Efroimski, Marsel"]
[Black "Stanciu, Andreea-Briana"]
[Result "1-0"]
[ECO "B23"]
[WhiteElo "2467"]
[BlackElo "1976"]
[Annotator "TA"]
[PlyCount "50"]
[EventDate "2024.03.20"]
[EventType "swiss"]
[EventCountry "ROU"]
[SourceTitle "playchess.com"]
[Source "ChessBase"]
[SourceQuality "1"]
[TimeControl "900+5"]

{[%evp 9,50,30,37,13,21,6,19,25,46,34,50,12,7,25,22,-17,80,20,47,43,56,25,78,93,142,160,147,111,200,114,109,107,130,89,100,107,104,101,149,162,387,389,2088]} 1. e4 {[%emt 0:00:02]} c5 {[%emt 0:00:01]} 2. Nc3 {[%emt 0:00:02]} Nc6 {[%emt 0:00:02][%cal Bb8c6,Bc6d4,Bd4f3][%mdl 32]} 3. Bb5 {[%emt 0:00:01][%cal Bf1b5,Bb5c4,Bc4b3][%mdl 32]} Nd4 {[%emt 0:00:13]} 4. Nf3 {[%emt 0:00:01]} Nxf3+ {[%emt 0:00:14]} 5. Qxf3 {[%emt 0:00:03]} e6 {[%emt 0:00:17] Black is weak on the light squares} 6. a4 {[%emt 0:00:17]} a6 {[%emt 0:00:22]} 7. Bc4 {[%emt 0:00:02]} d6 {[%emt 0:00:17]} 8. d3 {[%emt 0:00:17] The position is equal.} Nf6 {[%emt 0:00:06]} 9. Bb3 {[%emt 0:00:52]} Be7 {[%emt 0:00:40]} 10. g4 {[%emt 0:00:05]} h6 {[%emt 0:00:49]} 11. h4 {[%emt 0:02:00]} Nd7 {[%emt 0:00:14][%cal Bf6d7,Bd7b8,Bb8c6][%mdl 32]} 12. Qg3 {[%emt 0:00:02]} b6 {[%emt 0:01:02]} (12... Ne5 $11) 13. Bf4 {[%emt 0:00:21]} (13. Bd2 $16) 13... Nb8 {[%emt 0:00:25]} 14. O-O-O $36 {[%emt 0:00:14][%mdl 2048] White has the initiative.} Nc6 {[%emt 0:00:03] Dodges d4} 15. Be3 {[%emt 0:00:42]} (15. Ne2 $5) 15... Bb7 {[%emt 0:01:58]} (15... b5 $11 {remains equal.}) 16. g5 $16 {[%emt 0:00:04]} hxg5 {[%emt 0:02:35]} (16... Nd4 $142) 17. hxg5 {[%emt 0:00:02][%cal Bh4g5,Bg5g6,Bg6f7][%mdl 32]} Kd7 {[%emt 0:00:01]} 18. g6 {[%emt 0:00:10] White is much more active.} Bf6 {[%emt 0:01:48]} (18... Nd4 $16) 19. Rxh8 {[%emt 0:00:59]} (19. gxf7 $18 {Black must now prevent Rxh8.} Qe7 20. f4 Rxh1 21. Rxh1) 19... Qxh8 {[%emt 0:00:03]} 20. gxf7 {[%emt 0:00:01]} Qh5 {[%emt 0:00:32][%cal Oc6d4] Prevents Qg4.} 21. f4 {[%emt 0:00:30][%cal Of4f5] Strongly threatening f5!} Nd4 {[%emt 0:00:36]} 22. Bxd4 {[%emt 0:00:49]} cxd4 {[%emt 0:00:02]} 23. Nb1 {[%emt 0:00:10]} Rh8 {[%emt 0:02:15]} (23... Qxf7 $142 24. Rh1 Kc7) 24. Nd2 {[%emt 0:00:37]} Qh4 $2 {[%emt 0:00:18] [#]} (24... Qxf7 {was worth a try.} 25. f5 Kc7 26. fxe6 (26. Bxe6 Qh5 $18) 26... Qh5) 25. Qxh4 $18 {[%emt 0:08:47]} Rxh4 $2 {[%emt 0:02:17] Weighted Error Value: White=0.26 (precise) /Black=0.43.  Mistake:       	White=2     	Black=7      Inaccurate:     	White=4     	Black=1      OK:         	White=8     	Black=7} (25... Bxh4 26. Rh1 Ke7) 1-0

[Event "Grand Prix Romania 1st Stage 2024"]
[Site "Bucuresti"]
[Date "2024.03.23"]
[Round "4.39"]
[White "Costescu, Mihnea-Constantin"]
[Black "Cosma, Ioan"]
[Result "0-1"]
[ECO "D41"]
[WhiteElo "1951"]
[BlackElo "2316"]
[Annotator "RC"]
[PlyCount "52"]
[EventDate "2024.03.20"]
[EventType "swiss"]
[EventCountry "ROU"]
[SourceTitle "playchess.com"]
[Source "ChessBase"]
[SourceQuality "1"]
[TimeControl "900+5"]

1. d4 {[%emt 0:00:06]} Nf6 {[%emt 0:00:02]} 2. Nf3 {[%emt 0:00:01]} d5 {[%emt 0:00:01]} 3. c4 {[%emt 0:00:01]} e6 {[%emt 0:00:02]} 4. Nc3 {[%emt 0:00:01]} c5 {[%emt 0:00:06]} 5. cxd5 {[%emt 0:00:08]} Nxd5 {[%emt 0:00:01]} 6. e4 {[%emt 0:00:13]} Nxc3 {[%emt 0:00:02]} 7. bxc3 {[%emt 0:00:01]} cxd4 8. cxd4 {[%emt 0:00:02]} Bb4+ {[%emt 0:00:04]} 9. Bd2 {[%emt 0:00:01]} Bxd2+ {[%emt 0:00:02]} 10. Qxd2 {[%emt 0:00:01]} O-O {[%emt 0:00:02]} 11. Be2 {[%emt 0:00:02]} b6 {[%emt 0:00:03]} 12. O-O {[%emt 0:00:26]} Bb7 {[%emt 0:00:02]} 13. Qe3 {[%emt 0:00:04]} Nd7 {[%emt 0:00:09]} 14. Rfd1 {[%emt 0:00:12]} Rc8 {[%emt 0:00:09]} 15. d5 {[%emt 0:00:37]} exd5 {[%emt 0:00:16]} 16. exd5 {[%emt 0:00:01]} Re8 {[%emt 0:00:08]} 17. Qd2 {[%emt 0:00:04]} Nc5 {[%emt 0:00:07]} 18. Bb5 {[%emt 0:00:16]} Rf8 {[%emt 0:00:29]} 19. Ne5 {[%emt 0:00:27]} Ne4 {[%emt 0:00:37]} 20. Qb2 {[%emt 0:02:00]} Nc3 {[%emt 0:00:10]} 21. Rd3 {[%emt 0:01:06]} Nxb5 {[%emt 0:00:19]} 22. Qxb5 {[%emt 0:00:10]} Rc5 {[%emt 0:00:09]} 23. Qb3 {[%emt 0:00:20]} Rxd5 {[%emt 0:00:16]} 24. Rad1 {[%emt 0:00:09]} Rxd3 {[%emt 0:00:15]} 25. Rxd3 {[%emt 0:00:02]} Qg5 {[%emt 0:00:49]} 26. Nf3 {[%emt 0:01:11]} Bxf3 {[%emt 0:00:14]} 0-1

[Event "Grand Prix Romania 1st Stage 2024"]
[Site "Bucuresti"]
[Date "2024.03.24"]
[Round "5.1"]
[White "Jianu, Vlad-Cristian"]
[Black "Ponomariov, Ruslan"]
[Result "1/2-1/2"]
[ECO "E12"]
[WhiteElo "2491"]
[BlackElo "2646"]
[Annotator "TA"]
[PlyCount "37"]
[EventDate "2024.03.20"]
[EventType "swiss"]
[EventCountry "ROU"]
[SourceTitle "playchess.com"]
[Source "ChessBase"]
[SourceQuality "1"]
[TimeControl "900+5"]

{[%evp 19,37,5,16,-7,-7,-27,-22,-14,0,0,0,0,26,-25,5,0,20,0,0,0]} 1. d4 {[%emt 0:00:05]} Nf6 {[%emt 0:00:03]} 2. c4 {[%emt 0:00:01]} e6 {[%emt 0:00:01]} 3. Nf3 {[%emt 0:00:01]} b6 {[%emt 0:00:06]} 4. a3 {[%emt 0:00:02]} Bb7 {[%emt 0:00:04]} 5. Nc3 {[%emt 0:00:01]} d5 {[%emt 0:00:02]} 6. cxd5 {[%emt 0:00:02]} Nxd5 {[%emt 0:00:01]} 7. Qc2 {[%emt 0:00:01]} Nxc3 {[%emt 0:00:28]} 8. bxc3 {[%emt 0:00:01]} Nd7 {[%emt 0:00:13]} 9. e4 {[%emt 0:00:06]} c5 {[%emt 0:00:10]} 10. Bd3 {[%emt 0:00:12]} Qc7 {[%emt 0:00:18]} 11. O-O {[%emt 0:00:17]} cxd4 {[%emt 0:00:22]} 12. cxd4 {[%emt 0:00:02]} Qxc2 {[%emt 0:00:02]} 13. Bxc2 {[%emt 0:00:01]} Rc8 {[%emt 0:00:13]} 14. Bd3 {[%emt 0:00:42]} Be7 {[%emt 0:00:37]} 15. Bd2 {[%emt 0:00:26]} O-O {[%emt 0:00:08]} 16. a4 {[%emt 0:00:09]} (16. Bb4 $142 Bxb4 17. axb4) 16... a5 {[%emt 0:03:17]} 17. Rfb1 {[%emt 0:01:46] Die Stellung ist ausgeglichen.} Rfd8 {[%emt 0:00:21]} 18. Rb3 {[%emt 0:00:03]} ({Viel schlechter ist} 18. Bxa5 Bxe4 19. Bxe4 bxa5 $15) 18... Bc6 {[%emt 0:01:44]} 19. h3 {[%emt 0:00:38] Nicht viel passiert in dieser Partie.   Gewichteter Fehlerwert: Weiß=0.19 (sehr präzise) /Schwarz=0.10 (sehr präzise) .  Fehler:       	Weiß=1     	---        Ungenau:       	---       	Schwarz=2     OK:         	Weiß=3     	Schwarz=3} 1/2-1/2

[Event "Grand Prix Romania 1st Stage 2024"]
[Site "Bucuresti"]
[Date "2024.03.24"]
[Round "5.2"]
[White "Sarana, Alexey"]
[Black "Moroni, Luca Jr"]
[Result "1-0"]
[ECO "D58"]
[WhiteElo "2699"]
[BlackElo "2580"]
[Annotator "TA"]
[PlyCount "159"]
[EventDate "2024.03.20"]
[EventType "swiss"]
[EventCountry "ROU"]
[SourceTitle "playchess.com"]
[Source "ChessBase"]
[SourceQuality "1"]
[TimeControl "900+5"]

{[%evp 19,159,-8,0,0,4,0,14,0,7,0,52,55,41,56,52,58,43,47,37,30,36,37,31,35,66,79,72,80,72,71,73,84,77,70,79,72,96,50,79,68,70,53,68,48,70,17,22,18,29,27,16,0,9,0,9,0,0,0,8,0,0,0,0,0,0,0,0,-4,0,0,0,0,0,0,48,50,66,66,74,74,75,110,311,210,345,327,418,370,518,513,512,469,669,669,633,359,555,570,428,75,80,71,88,70,69,69,69,73,541,552,502,491,690,651,539,606,633,643,29979,29980,29982,29979,29979,29980,29988,29980,29983,29984,29984,29985,29987,29986,29988,29989,29989,29987,29987,29987,29987,29988,29989,29988]} 1. d4 {[%emt 0:00:02]} Nf6 {[%emt 0:00:02]} 2. c4 {[%emt 0:00:01]} e6 {[%emt 0:00:01]} 3. Nc3 {[%emt 0:00:02]} d5 {[%emt 0:00:01]} 4. Bg5 {[%emt 0:00:03]} Be7 {[%emt 0:00:13]} 5. e3 {[%emt 0:00:02]} O-O {[%emt 0:00:11]} 6. Qc2 {[%emt 0:00:02]} h6 {[%emt 0:00:07]} 7. Bh4 {[%emt 0:00:01]} b6 {[%emt 0:00:27]} 8. Nf3 {[%emt 0:00:03]} Bb7 {[%emt 0:00:21]} 9. Bxf6 {[%emt 0:00:03]} Bxf6 {[%emt 0:00:02]} 10. cxd5 {[%emt 0:00:01]} exd5 {[%emt 0:00:06]} 11. Rd1 {[%emt 0:00:02]} Nd7 {[%emt 0:00:57]} 12. g3 {[%emt 0:00:03]} Be7 {[%emt 0:00:18]} 13. Bg2 {[%emt 0:00:23] Die Stellung ist ausgeglichen.} Bd6 {[%emt 0:00:03]} 14. O-O {[%emt 0:00:26][%cal Of3e5]} c6 {[%emt 0:00:05]} (14... Nf6 $11) 15. e4 $14 {[%emt 0:00:40]} dxe4 {[%emt 0:00:06]} 16. Nxe4 {[%emt 0:00:02]} Nf6 {[%emt 0:01:57]} 17. Nxd6 {[%emt 0:01:33]} Qxd6 {[%emt 0:00:01]} 18. Ne5 {[%emt 0:00:02]} Rac8 {[%emt 0:00:01]} 19. Rfe1 {[%emt 0:00:21]} Rc7 {[%emt 0:00:13]} 20. Qa4 {[%emt 0:00:29]} Ba8 {[%emt 0:00:20]} 21. a3 {[%emt 0:00:45]} c5 {[%emt 0:04:56]} 22. Nc4 {[%emt 0:05:02] Weiß steht aktiver.} Qd7 {[%emt 0:01:12]} 23. Qxd7 {[%emt 0:00:02]} Rxd7 {[%emt 0:01:18]} 24. dxc5 {[%emt 0:00:04]} (24. Bxa8 Rxa8 25. dxc5 bxc5 26. Rxd7 Nxd7 $14) 24... Rxd1 {[%emt 0:00:49]} 25. Rxd1 {[%emt 0:00:02]} bxc5 {[%emt 0:00:06]} 26. Rd6 {[%emt 0:00:36]} Bxg2 {[%emt 0:00:25]} 27. Kxg2 {[%emt 0:00:02][%mdl 4096] Endspiel. KRN-KRN} Re8 {[%emt 0:00:01]} 28. Kf1 {[%emt 0:01:27]} ({Vorzuziehen ist} 28. Rc6 $16) 28... Ne4 {[%emt 0:00:41]} 29. Rd5 {[%emt 0:01:24]} Re7 {[%emt 0:00:25]} 30. h4 {[%emt 0:02:21]} Rc7 {[%emt 0:00:02]} 31. Ke2 {[%emt 0:00:12]} (31. f3 $5 Nf6 $8 32. Rd8+ Kh7 33. Rd6 $14) 31... Kf8 {[%emt 0:00:16]} 32. a4 {[%emt 0:00:52]} (32. Kf3 $14 Nf6 33. Rd6) 32... Nf6 {[%emt 0:00:35]} 33. Rf5 {[%emt 0:00:01]} Nd7 {[%emt 0:00:24]} 34. a5 {[%emt 0:00:04]} Ke7 {[%emt 0:00:04]} 35. h5 {[%emt 0:00:10]} Rc6 {[%emt 0:00:21]} 36. Kd3 {[%emt 0:00:01]} Re6 {[%emt 0:00:25]} 37. Ne3 {[%emt 0:00:10]} Ra6 {[%emt 0:00:01]} 38. Nc4 {[%emt 0:00:08]} Re6 {[%emt 0:00:01]} 39. Rf4 {[%emt 0:00:29]} Nf6 {[%emt 0:00:01]} 40. g4 {[%emt 0:00:03]} g5 {[%emt 0:00:18]} 41. hxg6 {[%emt 0:00:03]} fxg6 {[%emt 0:00:00]} 42. Ne3 {[%emt 0:00:02]} Ra6 {[%emt 0:00:13]} 43. Ra4 {[%emt 0:00:01]} h5 {[%emt 0:00:14]} 44. gxh5 {[%emt 0:00:02]} gxh5 {[%emt 0:00:01]} 45. Kc4 {[%emt 0:00:02]} Nd7 {[%emt 0:00:01]} 46. Kb5 {[%emt 0:00:03]} Rg6 {[%emt 0:00:09]} (46... Re6 $11 {kam in Betracht.}) 47. Rh4 {[%emt 0:00:01]} a6+ {[%emt 0:00:03]} 48. Kc4 {[%emt 0:00:01]} Ne5+ {[%emt 0:00:20]} 49. Kxc5 {[%emt 0:00:11]} Nd3+ {[%emt 0:00:01]} 50. Kd4 {[%emt 0:00:02]} Nxb2 {[%emt 0:00:10] [#]} (50... Nxf2 $16 51. Rxh5 Rd6+ 52. Kc4 Rc6+ 53. Kd4 Rd6+ 54. Kc4 Rd2) 51. Rxh5 {[%emt 0:00:01] Schwarz muss nun Kc3 beachten.} Na4 {[%emt 0:00:06]} (51... Rd6+ $142 52. Nd5+ Kf8) 52. f4 $18 {[%emt 0:00:03]} Rg1 {[%emt 0:00:04]} 53. Rh7+ {[%emt 0:00:02]} Kd8 {[%emt 0:00:03]} 54. Rh6 {[%emt 0:00:02]} Rc1 {[%emt 0:00:08]} 55. Rxa6 {[%emt 0:00:03]} Nc3 {[%emt 0:00:01]} (55... Nc5 $142) 56. Rb6 {[%emt 0:00:05]} Ne2+ {[%emt 0:00:03]} 57. Ke4 {[%emt 0:00:02]} Nc3+ {[%emt 0:00:01]} (57... Ra1 $142 58. Nc4 Kc7) 58. Kd3 {[%emt 0:00:01]} Na4 {[%emt 0:00:02]} 59. Rd6+ {[%emt 0:00:05]} (59. Rb5 $18 {ist viel giftiger.}) 59... Kc7 $16 {[%emt 0:00:05]} 60. Rd5 {[%emt 0:00:04] [#] Kd4 wäre nun fies.} Kc6 {[%emt 0:00:03]} 61. Rh5 {[%emt 0:00:21] Und Kd4 würde nun gewinnen.} Nc5+ {[%emt 0:00:10]} 62. Kd4 {[%emt 0:00:03]} Nb3+ {[%emt 0:00:02]} 63. Ke4 {[%emt 0:00:01] Weiß überlässt nun nichts mehr dem Zufall.} Nd2+ $2 {[%emt 0:00:03][%mdl 8192]} (63... Ra1 $16 {leistet mehr Widerstand.}) 64. Kd3 $18 {[%emt 0:00:04]} ({Schwächer ist} 64. Kf5 Ra1 $16) 64... Nb3 {[%emt 0:00:04]} 65. Rh6+ {[%emt 0:00:03]} Kd7 {[%emt 0:00:19]} (65... Kc5 $142 66. Rh5+ (66. a6 Ra1 $18) 66... Kc6) 66. a6 {[%emt 0:00:22]} Nc5+ {[%emt 0:00:01]} 67. Kd4 {[%emt 0:00:01]} Ne6+ {[%emt 0:00:01]} 68. Ke5 {[%emt 0:00:04]} Rc5+ {[%emt 0:00:06]} 69. Nd5 {[%emt 0:00:01] Weiß setzt Matt.} Nxf4 {[%emt 0:00:05]} 70. Rd6+ {[%emt 0:00:03]} Kc8 {[%emt 0:00:08]} 71. Kxf4 {[%emt 0:00:02] KRN-KR} Kb8 {[%emt 0:00:01]} 72. Ke4 {[%emt 0:00:10]} Ka7 {[%emt 0:00:11]} 73. Kd4 {[%emt 0:00:02]} Ra5 {[%emt 0:00:04]} 74. Nb4 {[%emt 0:00:01]} Rh5 {[%emt 0:00:03]} 75. Kc4 {[%emt 0:00:01]} Rh7 {[%emt 0:00:04]} 76. Kb5 {[%emt 0:00:02]} Rh5+ {[%emt 0:00:07]} 77. Nd5 {[%emt 0:00:01]} Rh7 {[%emt 0:00:07]} 78. Re6 {[%emt 0:00:01]} Rh5 {[%emt 0:00:02]} 79. Re7+ {[%emt 0:00:02]} Kb8 {[%emt 0:00:00]} 80. Rd7 {[%emt 0:00:05] Gewichteter Fehlerwert: Weiß=0.29 (präzise) /Schwarz=0.26 (präzise) .  Verlustzug:     	---       	Schwarz=2     Gewinn verpasst:   	Weiß=1     	---        Fehler:       	Weiß=2     	Schwarz=5     Ungenau:       	Weiß=1     	Schwarz=3     OK:         	Weiß=22    	Schwarz=17    Bester:       	Weiß=7     	Schwarz=4} 1-0

[Event "Grand Prix Romania 1st Stage 2024"]
[Site "Bucuresti"]
[Date "2024.03.24"]
[Round "5.3"]
[White "Zajic, Milan"]
[Black "Deac, Bogdan-Daniel"]
[Result "1-0"]
[ECO "C87"]
[WhiteElo "2436"]
[BlackElo "2690"]
[Annotator "RC"]
[PlyCount "84"]
[EventDate "2024.03.20"]
[EventType "swiss"]
[EventCountry "ROU"]
[SourceTitle "playchess.com"]
[Source "ChessBase"]
[SourceQuality "1"]
[TimeControl "900+5"]

1. e4 {[%emt 0:00:02]} e5 {[%emt 0:00:19]} 2. Nf3 {[%emt 0:00:02]} Nc6 {[%emt 0:00:02]} 3. Bb5 {[%emt 0:00:02]} a6 {[%emt 0:00:30]} 4. Ba4 {[%emt 0:00:01]} Nf6 {[%emt 0:00:17]} 5. O-O {[%emt 0:00:03]} d6 {[%emt 0:00:35]} 6. Re1 {[%emt 0:01:05]} Bg4 {[%emt 0:01:24]} 7. c3 {[%emt 0:00:56]} Be7 {[%emt 0:00:50]} 8. h3 {[%emt 0:00:09]} Bh5 {[%emt 0:00:02]} 9. d3 {[%emt 0:00:51]} Qd7 {[%emt 0:01:11]} 10. Bg5 {[%emt 0:02:20]} h6 {[%emt 0:08:50]} 11. Bxf6 {[%emt 0:01:00]} gxf6 {[%emt 0:00:01]} 12. Nbd2 {[%emt 0:00:32]} Rg8 {[%emt 0:00:25]} 13. Kh1 {[%emt 0:00:39]} Rd8 {[%emt 0:01:21]} 14. Nf1 {[%emt 0:01:00]} Bg6 {[%emt 0:00:16]} 15. Ng3 {[%emt 0:00:16]} d5 {[%emt 0:00:05]} 16. Nh4 {[%emt 0:00:28]} dxe4 {[%emt 0:00:02]} 17. Nxg6 {[%emt 0:00:07]} fxg6 {[%emt 0:00:08]} 18. Qb3 {[%emt 0:01:35]} Kf8 {[%emt 0:00:01]} 19. Qxb7 {[%emt 0:01:01]} Na5 {[%emt 0:00:01]} 20. Bxd7 {[%emt 0:01:00]} Nxb7 {[%emt 0:00:01]} 21. Bc6 {[%emt 0:00:15]} Na5 {[%emt 0:00:22]} 22. Bxe4 {[%emt 0:00:05]} f5 {[%emt 0:00:01]} 23. Bf3 {[%emt 0:00:09]} Rxd3 {[%emt 0:00:04]} 24. Rxe5 {[%emt 0:01:23]} Nc4 {[%emt 0:00:01]} 25. Rd5 {[%emt 0:00:01]} Nxb2 {[%emt 0:00:06]} 26. Rb1 {[%emt 0:00:01]} c6 {[%emt 0:00:04]} 27. Ra5 {[%emt 0:01:40]} Nc4 {[%emt 0:00:03]} 28. Rxa6 {[%emt 0:00:11]} Ne5 {[%emt 0:00:10]} 29. Bxc6 {[%emt 0:00:17]} Kf7 {[%emt 0:00:09]} 30. c4 {[%emt 0:00:16]} Nxc6 {[%emt 0:00:04]} 31. Rxc6 {[%emt 0:00:01]} Ra8 {[%emt 0:00:06]} 32. Re1 {[%emt 0:00:03]} Bd6 {[%emt 0:00:07]} 33. c5 {[%emt 0:00:09]} Bf4 {[%emt 0:00:05]} 34. Ne2 {[%emt 0:00:04]} Re8 {[%emt 0:00:03]} 35. Rb6 {[%emt 0:00:08]} Bd2 {[%emt 0:00:03]} 36. Rb7+ {[%emt 0:00:04]} Kf6 {[%emt 0:00:02]} 37. Rb6+ {[%emt 0:00:01]} Kf7 {[%emt 0:00:04]} 38. Rb7+ {[%emt 0:00:01]} Kf6 {[%emt 0:00:12]} 39. Rb6+ {[%emt 0:00:01]} Kg5 {[%emt 0:00:05]} 40. h4+ {[%emt 0:00:06]} Kxh4 {[%emt 0:00:05]} 41. Rxg6 {[%emt 0:00:09]} Kh5 {[%emt 0:00:06]} 42. Rg7 {[%emt 0:00:07]} Rf8 {[%emt 0:00:12]} 1-0

[Event "Grand Prix Romania 1st Stage 2024"]
[Site "Bucuresti"]
[Date "2024.03.24"]
[Round "5.4"]
[White "Safarli, Eltaj"]
[Black "Mikhalevski, Victor"]
[Result "1-0"]
[ECO "C77"]
[WhiteElo "2614"]
[BlackElo "2514"]
[Annotator "TA"]
[PlyCount "121"]
[EventDate "2024.03.20"]
[EventType "swiss"]
[EventCountry "ROU"]
[SourceTitle "playchess.com"]
[Source "ChessBase"]
[SourceQuality "1"]
[TimeControl "900+5"]

{[%evp 11,121,11,26,29,18,-27,-32,-32,-32,-36,-29,-27,61,62,64,58,59,0,212,218,245,244,344,46,329,46,255,260,265,261,244,263,252,262,266,264,264,264,250,261,245,281,293,291,305,297,304,279,279,256,248,158,287,274,298,295,462,435,368,303,440,452,541,547,613,802,801,778,793,764,1136,748,746,752,850,702,711,690,704,707,773,763,946,944,950,815,816,733,1337,1227,1518,1484,1681,1583,1719,1304,1551,1351,1628,788,1706,1633,29945,12839,1800,29960,29965,29970,29966,29966,29958,268]} 1. e4 {[%emt 0:00:03]} e5 {[%emt 0:00:02]} 2. Nf3 {[%emt 0:00:03]} Nc6 {[%emt 0:00:01]} 3. Bb5 {[%emt 0:00:04]} a6 {[%emt 0:00:02]} 4. Ba4 {[%emt 0:00:02]} Nf6 {[%emt 0:00:02]} 5. Nc3 {[%emt 0:00:11]} b5 {[%emt 0:00:05]} 6. Bb3 {[%emt 0:00:02]} Bc5 {[%emt 0:00:02]} 7. Nd5 {[%emt 0:00:43]} O-O {[%emt 0:00:08]} 8. c3 {[%emt 0:00:35]} Nxe4 {[%emt 0:00:23]} 9. d4 {[%emt 0:00:18] Black is slightly better.} exd4 {[%emt 0:00:09]} 10. cxd4 {[%emt 0:00:02]} Re8 {[%emt 0:00:23]} 11. O-O $1 {[%emt 0:00:24]} Bf8 {[%emt 0:00:04]} ({Black should play} 11... Bd6 $1 $11) 12. Re1 $1 $14 {[%emt 0:01:51] Strongly threatening Qd3.} Bb7 {[%emt 0:01:49]} 13. Bf4 {[%emt 0:00:56]} Bd6 {[%emt 0:01:14]} 14. Bxd6 {[%emt 0:01:10]} (14. Ne5 $1 $14 Nxe5 15. dxe5 (15. Rxe4 Nc4 $17)) 14... cxd6 $2 {[%emt 0:01:03] [#]} (14... Nxd6 $11 {and Black has nothing to worry.} 15. Rxe8+ Nxe8) 15. Qd3 $1 $18 {[%emt 0:00:41]} Ne7 {[%emt 0:02:28]} 16. Rxe4 {[%emt 0:01:02]} Nxd5 {[%emt 0:00:36]} (16... Bxd5 {was called for.} 17. Rxe7 Rxe7) 17. Rxe8+ {[%emt 0:01:23]} Qxe8 {[%emt 0:00:01] [#]} 18. Re1 $2 {[%emt 0:00:02]} (18. Ng5 $1 $18 g6 19. Qh3) 18... Qc8 $2 {[%emt 0:01:37]} (18... Qf8 $1 $14) 19. Ng5 {[%emt 0:00:17]} Nf6 {[%emt 0:00:02]} 20. Bxf7+ {[%emt 0:00:24]} (20. Nxf7 Bd5 21. Nxd6 Qf8 $18) 20... Kh8 {[%emt 0:00:09] [#]} 21. Re8+ $3 {[%emt 0:01:07][%mdl 512]} Qxe8 {[%emt 0:00:01]} 22. Bxe8 {[%emt 0:00:01]} Rxe8 {[%emt 0:00:02]} 23. f3 {[%emt 0:00:17]} Bd5 {[%emt 0:00:06] Prevents Nf7+} 24. b3 {[%emt 0:00:12]} h6 {[%emt 0:04:15]} 25. Nh3 {[%emt 0:00:02]} Re1+ {[%emt 0:00:01]} 26. Kf2 {[%emt 0:00:02]} Ra1 {[%emt 0:00:02]} 27. Qc2 {[%emt 0:00:32]} a5 {[%emt 0:00:10]} 28. Nf4 {[%emt 0:00:06]} Bf7 {[%emt 0:00:13]} 29. Qb2 {[%emt 0:01:46]} Rd1 {[%emt 0:00:14]} 30. Ne2 {[%emt 0:00:20]} Nd5 {[%emt 0:00:48]} 31. Qa3 {[%emt 0:00:13]} b4 {[%emt 0:00:18]} (31... a4 $16) 32. Qxa5 {[%emt 0:00:03]} Rd2 {[%emt 0:00:06]} 33. Ke1 {[%emt 0:00:22]} Rc2 {[%emt 0:00:02]} (33... Rb2 $142 34. Qa6 Be6) 34. Qa8+ {[%emt 0:01:39]} Kh7 {[%emt 0:00:26]} 35. Qa6 {[%emt 0:00:06]} Bg6 {[%emt 0:00:07]} (35... Rb2 $142 36. h4 (36. Qxd6 Rb1+ 37. Kf2 Rb2 $18) 36... Bg8) 36. Qxd6 {[%emt 0:00:04]} Ne3 {[%emt 0:00:16]} 37. Nf4 {[%emt 0:00:20]} (37. Qxb4 Nxg2+ 38. Kf1 Ne3+ 39. Kf2 Nd5 $15) 37... Bd3 {[%emt 0:00:25]} 38. Nxd3 {[%emt 0:00:21]} Nxg2+ {[%emt 0:00:01]} 39. Kf1 {[%emt 0:00:01]} Ne3+ {[%emt 0:00:01]} 40. Kg1 {[%emt 0:00:01]} Rg2+ {[%emt 0:00:01]} 41. Kh1 {[%emt 0:00:01]} Rd2 {[%emt 0:00:01]} 42. Ne1 {[%emt 0:00:16]} (42. Nxb4 $2 Rd1#) 42... Rd1 {[%emt 0:00:03]} 43. Qxb4 {[%emt 0:00:18] Qc3 is the strong threat.} Nc2 {[%emt 0:00:01]} 44. Qb5 {[%emt 0:00:12] Black must now prevent Qf5+.} Nxe1 {[%emt 0:00:14][%mdl 4096] Endgame. KQ-KRN} 45. Qf5+ {[%emt 0:00:02]} Kh8 {[%emt 0:00:05]} 46. Qxd7 {[%emt 0:00:09]} Nxf3+ {[%emt 0:00:18]} 47. Kg2 {[%emt 0:00:00] aiming for Qc8+.} Nxd4 {[%emt 0:00:01]} 48. Qe8+ {[%emt 0:00:04]} Kh7 {[%emt 0:00:02]} 49. Qe4+ {[%emt 0:00:01]} Kh8 {[%emt 0:00:02]} 50. b4 {[%emt 0:00:12][%cal Bb3b4,Bb4b5][%mdl 32]} Rd2+ {[%emt 0:00:04]} 51. Kh3 {[%emt 0:00:04]} Ne2 {[%emt 0:00:21]} 52. b5 {[%emt 0:00:08]} Ng1+ {[%emt 0:00:03]} 53. Kg3 {[%emt 0:00:01]} Ne2+ {[%emt 0:00:02]} 54. Kf3 {[%emt 0:00:04]} Ng1+ {[%emt 0:00:02]} 55. Ke3 {[%emt 0:00:10]} Rb2 {[%emt 0:00:13]} 56. a4 {[%emt 0:00:06]} Rb3+ {[%emt 0:00:04]} 57. Kf2 {[%emt 0:00:05]} Nh3+ {[%emt 0:00:03]} 58. Kg2 {[%emt 0:00:01]} Ng5 {[%emt 0:00:02] White mates.} 59. Qc2 {[%emt 0:00:07]} Rb4 {[%emt 0:00:02]} 60. Qc3 {[%emt 0:00:06]} Rxa4 {[%emt 0:00:02]} 61. Qc8+ {[%emt 0:00:01] Weighted Error Value: White=0.23 (precise) /Black=0.51.  Loses game:     	---       	Black=3      Missed win:     	White=1     	---        Mistake:       	White=1     	Black=5      Inaccurate:     	White=2     	---        OK:         	White=13    	Black=7      Best:        	White=6     	Black=4      Strong:       	White=3     	---} 1-0